Cogmind - Beta 16 @@@ ROGUE MODE // 2025.10.22 @ 15:53:22 Player: WetterLettuce Result: Destroyed by Striker with Compact Linear Accelerator Performance ------------- Evolutions (5) 2500 Regions Visited (12) 2400 Robots Destroyed (75) 375 Value Destroyed (2682) 2682 Prototype IDs (30) 600 Alien Tech Used (0) 0 Bonus (880) 880 TOTAL SCORE: 9437 Bonus ------- Met Warlord at Base 500 MAIN.C Attacked Warlord 500 Friendly Fire -120 Cogmind --------- Core Integrity 0/1000 Matter 149/300 Energy 99/100 System Corruption 0% Temperature Cool (0) Movement Core (50) Location -5/Warlord Parts ------- > --- POWER (1) -------- (None) > --- PROPULSION (3) --- Improved Gravmag System > --- UTILITY (9) ------ Advanced Signal Interpreter Advanced Recoil Stabilizer (fused) Hacking Suite > --- WEAPON (4) ------- Backup Laser III > --- INVENTORY (5) ---- Micro Fission Core Layered Medium Armor Plating Tower Shield Minesniffer Drone Bay (10/10) Peak State ------------ > --- POWER ------------ Neutrino Core > --- PROPULSION ------- Flexi-carbon Leg Armored Leg Armored Leg > --- UTILITY ---------- Advanced Heat Sink Enhanced Optical Array Advanced Signal Interpreter Improved Salvage Targeting Computer Advanced Targeting Computer Core Analyzer Layered Medium Armor Plating Hacking Suite System Shield > --- WEAPON ----------- Tesla Rifle Heavy Machine Gun Enhanced Gauss Cannon Improved Plasma Cutter > --- INVENTORY -------- Improved Medium Treads Layered Medium Armor Plating Layered Medium Armor Plating Tower Shield [Rating: 84] Favorites ----------- Power Ion Engine Engine Ion Engine Power Core Micro Nuclear Core Propulsion Light Treads Treads Light Treads Leg Aluminum Leg Wheel Wheel Hover Unit Improved Gravmag System Flight Unit Improved VTOL Module Utility Small Storage Unit Device Improved Heat Sink Storage Small Storage Unit Processor Core Analyzer Hackware Hacking Suite Protection Light Armor Plating Weapon Light Assault Rifle Energy Gun Backup Laser III Energy Cannon Phase Cannon Ballistic Gun Light Assault Rifle Ballistic Cannon Battle Cannon Launcher Grenade Launcher Special Weapon Improved Plasma Cutter Slashing Weapon Katana Build | -11 -10 -10 -10 -8 -8 -7 -6 -5 -5 -5 -5 -5 ------- Run | Yrd Mat Min Sub Mat Sto Fac Fac Fac Was Fac Upp War Slots Evolved 10 | . . . . 4 . 2 2 2 . . . . Power . | . . . . . . . . . . . . . Propulsion 1 | . . . . 1 . . . . . . . . Utility 7 | . . . . 2 . 1 2 2 . . . . Weapon 2 | . . . . 1 . 1 . . . . . . Parts Attached 95 | 6 3 3 10 5 15 11 13 19 1 8 . 1 Power 9 | 1 . . . 1 2 1 1 2 . 1 . . Engine 4 | 1 . . . . 2 1 . . . . . . Core 5 | . . . . 1 . . 1 2 . 1 . . Reactor . | . . . . . . . . . . . . . Propulsion 28 | 2 . . 4 1 7 3 3 4 1 3 . . Treads 5 | 2 . . . . 1 . . 1 . 1 . . Leg 13 | . . . 1 . 5 . 3 3 1 . . . Wheel 7 | . . . 3 1 . 3 . . . . . . Hover 2 | . . . . . . . . . . 2 . . Flight 1 | . . . . . 1 . . . . . . . Utility 29 | 1 1 . 2 2 4 5 4 5 . 4 . 1 Device 9 | . . . 1 2 . . 2 2 . 1 . 1 Storage 1 | 1 . . . . . . . . . . . . Processor 8 | . . . . . 1 2 1 2 . 2 . . Hackware 6 | . . . . . 2 2 1 . . 1 . . Protection 5 | . 1 . 1 . 1 1 . 1 . . . . Artifact . | . . . . . . . . . . . . . Weapon 29 | 2 2 3 4 1 2 2 5 8 . . . . Energy Gun 7 | 2 . . . . . . . 5 . . . . Energy Cannon 2 | . . . . . . . 2 . . . . . Ballistic Gun 11 | . 2 2 2 1 1 . 2 1 . . . . Ballistic Cannon 4 | . . . 1 . . 1 1 1 . . . . Launcher 3 | . . 1 . . 1 1 . . . . . . Special Weapon 2 | . . . 1 . . . . 1 . . . . Impact Weapon . | . . . . . . . . . . . . . Slashing Weapon . | . . . . . . . . . . . . . Piercing Weapon . | . . . . . . . . . . . . . Special Melee Weapon . | . . . . . . . . . . . . . Unidentified Prototypes 6 | . . . . . 3 . 1 1 . . . 1 Parts Lost 54 | . . . 6 3 8 8 4 19 3 . 1 2 Power 4 | . . . . . 1 1 . 1 . . . 1 Propulsion 18 | . . . 4 2 2 3 1 4 1 . 1 . Utility 10 | . . . 1 1 2 1 . 3 2 . . . Weapon 22 | . . . 1 . 3 3 3 11 . . . 1 Highest Loss Streak 15 | . . . 3 2 3 8 2 15 3 . 1 2 To Critical Strikes . | . . . . . . . . . . . . . Average Backups 4 | 1 4 7 5 6 4 2 3 3 4 4 4 4 Power . | . 1 1 1 . . . . . . . 1 1 Propulsion . | . . . . . . . . . . . . . Utility 2 | . . 1 1 2 1 2 2 2 4 3 3 3 Weapon 1 | . 3 4 2 1 1 . . . . . . . Tool/Special . | . . . . . . . . . . . . . Unused Backups 8 | . . 3 . . 1 1 . . . . . 3 Power 2 | . . 1 . . 1 . . . . . . . Propulsion . | . . . . . . . . . . . . . Utility 5 | . . 1 . . . 1 . . . . . 3 Weapon 1 | . . 1 . . . . . . . . . . Tool/Special . | . . . . . . . . . . . . . Average Slot Usage (%) 70 | . 95 100 61 61 75 75 92 88 29 21 38 48 Engine 4 | . 14 14 2 . 7 5 1 . . . . 3 Core 1 | . . . . 3 . . 4 4 . . . . Treads 5 | . 28 28 3 . 4 . . . . 4 5 5 Leg 6 | . . . 6 7 12 7 9 13 2 . . . Wheel 4 | . . . 7 7 . 12 9 . . . . . Device 3 | . . . 1 7 6 . 6 4 . 3 5 5 Storage 7 | . 14 14 14 9 . . . . . . . . Processor 6 | . . . . . . 11 22 29 21 2 11 11 Hackware 5 | . . . . . 16 21 16 10 3 2 5 5 Protection 3 | . 10 14 1 9 2 1 . 3 . . . . Energy Gun 1 | . 17 . . . . . . 4 . . . 8 Ballistic Gun 11 | . 10 22 19 12 5 4 8 2 . . . . Ballistic Cannon 2 | . . . 1 5 3 3 3 4 . . . . Launcher 1 | . . 5 2 . 5 . . . . . . . Peak Build Rating 84 | 6 7 8 13 25 33 35 64 84 35 47 41 47 Average Rating 24 | 4 6 7 7 19 27 28 51 69 25 24 37 42 On Entrance 21 | . 6 7 8 13 24 29 31 49 27 3 41 35 Avg Prop Armor Cover (%) 20 | . . . 9 6 6 30 . 24 28 36 35 28 Naked Turns 29 | . . . . . . . . . 14 15 . . Heaviest Build 44 | 14 17 17 17 23 23 25 35 44 . 1 1 7 Greatest Support 60 | 40 40 40 40 20 38 48 60 56 3 3 3 3 Greatest Overweight (x) 6 | 1 . . 3 1 6 1 1 2 . . . 2 Average Overweight (x) . | . . . . . . . . . . . . 1 Largest Inventory Capacity 8 | 8 8 8 8 8 8 5 5 5 5 5 5 5 Average Capacity 6 | 7 8 8 8 8 5 5 5 5 5 5 5 5 Most Carried 8 | 2 8 8 8 8 8 5 5 5 5 5 5 5 Average Carried 6 | 1 4 7 7 7 5 3 4 4 5 4 5 4 Final Capacity 8 | 8 8 8 8 8 5 5 5 5 5 5 5 5 Final Carried 8 | 2 8 8 8 8 5 5 5 5 5 5 5 5 Scrap Suit Usage (%) 10 | . . . . 51 75 . . . . . . . Parts Cannibalized 2 | . . . . . 2 . . . . . . . Class Distribution -------------------- 73% | Mutant 8% | Scavenger-Mutant 8% | Scavenger-Gunner 5% | Hacker-Mutant 5% | Hacker-Gunner Dominant Class ---------------- Mutant | -10/Materials Mutant | -10/Mines Mutant | -10/Subcaves Mutant | -8/Materials Mutant | -8/Storage Hacker-Mutant | -7/Factory Scavenger-Gunner | -6/Factory Scavenger-Gunner | -5/Factory Mutant | -5/Waste Mutant | -5/Factory Mutant | -5/Upper Caves Mutant | -5/Warlord Resources | -11 -10 -10 -10 -8 -8 -7 -6 -5 -5 -5 -5 -5 ----------- Run | Yrd Mat Min Sub Mat Sto Fac Fac Fac Was Fac Upp War Matter Collected 2166 | 187 83 110 173 156 449 218 232 558 . . . . Remotely . | . . . . . . . . . . . . . Salvage Created 2409 | . 92 142 181 141 714 293 240 606 . . . . Parts 184 | . 5 19 19 10 51 21 19 40 . . . . Haulers Intercepted . | . . . . . . . . . . . . . Recyclers Shooed . | . . . . . . . . . . . . . Parts Field Recycled . | . . . . . . . . . . . . . Retrieved Matter . | . . . . . . . . . . . . . Parts Self-Destructed 7 | . . . 7 . . . . . . . . . Prevented . | . . . . . . . . . . . . . Parts Restored . | . . . . . . . . . . . . . Kills | -11 -10 -10 -10 -8 -8 -7 -6 -5 -5 -5 -5 -5 ------- Run | Yrd Mat Min Sub Mat Sto Fac Fac Fac Was Fac Upp War Combat Hostiles Destroyed 62 | . 2 8 6 4 18 8 3 13 . . . . Melee 11 | . . . . . 11 . . . . . . . Guns 22 | . 2 6 2 2 2 1 1 6 . . . . Cannons 17 | . . . . 2 1 5 2 7 . . . . AOE 12 | . . 2 4 . 4 2 . . . . . . Classes Destroyed 15 | . 1 1 3 2 2 2 2 2 . . . . Worker 2 | . . . . . . . . 2 . . . . Builder 4 | . . . . . . 2 . 2 . . . . Recycler 1 | . . . . . . 1 . . . . . . Operator 2 | . . . . . 1 1 . . . . . . Watcher 2 | . . . . . . . 2 . . . . . Swarmer 17 | . . 6 3 . 4 . . 4 . . . . Grunt 19 | . 2 2 . 2 6 7 . . . . . . Duelist 2 | . . . . . 1 1 . . . . . . Sentry 9 | . . . . 1 6 . 1 1 . . . . Specialist 2 | . . . . . . . . 2 . . . . Hunter 5 | . . . . 1 1 . 1 2 . . . . Programmer 5 | . . . . . . . 1 4 . . . . Artisan 2 | . . . 2 . . . . . . . . . Subdweller 3 | . . . 3 . . . . . . . . . Zionite 2 | . . . 2 . . . . . . . . . Best Kill Streak 7 | . 2 3 3 2 7 6 2 7 . . . . Combat Bots Only 6 | . 2 3 3 2 6 3 2 5 . . . . Max Kills in Single Turn 2 | . 1 2 2 1 2 2 1 2 . . . . Gunslinging . | . . . . . . . . . . . . . Exploded 2 | . . 2 2 . 2 1 . . . . . . Melee 1 | . . . . . 1 . . . . . . . Uniques/NPCs Destroyed . | . . . . . . . . . . . . . Combat | -11 -10 -10 -10 -8 -8 -7 -6 -5 -5 -5 -5 -5 -------- Run | Yrd Mat Min Sub Mat Sto Fac Fac Fac Was Fac Upp War Hostile Shots Fired 727 | . 9 47 33 27 112 88 136 215 3 21 15 21 Missed 256 | . 3 14 14 7 25 29 59 83 . 7 5 10 Hits 471 | . 6 33 19 20 87 59 77 132 3 14 10 11 Melee 23 | . . . . . 9 10 . . 3 . . 1 Projectile 448 | . 6 33 19 20 78 49 77 132 . 14 10 10 AOE 1 | . . . . . . . . 1 . . . . Critical Strikes 20 | . . 1 . . 6 2 3 5 . 1 . 2 Part Disruptions 1 | . . . . . . . . 1 . . . . Damage Taken 8996 | . 107 341 687 304 1478 1119 1165 2717 138 424 189 327 Core 1958 | . 11 61 167 73 212 220 188 437 138 179 80 192 Absorbed by Shields . | . . . . . . . . . . . . . Regen/Repaired (Parts) 23 | . . . . . 20 . . . . . . 3 Core Remaining (%) 59 | 100 . . 4 . 48 68 77 . . . . . Volleys Fired 197 | . 7 21 54 22 16 26 10 41 . . . . Largest 4 | . 2 2 2 2 2 3 4 3 . . . . Hottest 192 | . 90 50 50 50 56 82 192 187 . . . . Shots Fired 356 | . 14 41 83 33 23 32 22 108 . . . . Gun 221 | . 14 40 58 22 17 8 8 54 . . . . Cannon 115 | . . . 14 11 2 20 14 54 . . . . Launcher 20 | . . 1 11 . 4 4 . . . . . . Special . | . . . . . . . . . . . . . Kinetic 274 | . . 40 72 33 19 28 11 71 . . . . Thermal 31 | . 7 . . . . . 11 13 . . . . Explosive 20 | . . 1 11 . 4 4 . . . . . . Electromagnetic 31 | . 7 . . . . . . 24 . . . . Robot Hit Streak 20 | . 3 20 12 10 8 7 4 9 . . . . Robot Miss Streak 6 | . 1 4 3 3 2 1 4 6 . . . . Penetration Max 1 | . . . . . . . . 1 . . . . Secondary Targets 2 | . . 2 . . . . . . . . . . Max Gunslinging Chain 1 | . . 1 . . . . . . . . . . Shots Hit Robots 242 | . 8 28 39 20 46 28 9 64 . . . . Core Hits 138 | . 4 17 18 9 28 24 8 30 . . . . Critical Kills 3 | . . . 1 . . . . 2 . . . . Critical Parts Destroyed . | . . . . . . . . . . . . . Critical Strikes 9 | . . . 1 . 1 1 . 6 . . . . Destroy 3 | . . . 1 . . . . 2 . . . . Blast 5 | . . . . . . 1 . 4 . . . . Sever 1 | . . . . . 1 . . . . . . . Melee Attacks 44 | . . . . . 37 7 . . . . . . Impact . | . . . . . . . . . . . . . Slashing 44 | . . . . . 37 7 . . . . . . Piercing . | . . . . . . . . . . . . . Sneak Attacks . | . . . . . . . . . . . . . Combat Hostiles . | . . . . . . . . . . . . . Follow-up Attacks . | . . . . . . . . . . . . . Damage Inflicted 6473 | . 106 283 590 400 1455 1345 255 2039 . . . . Guns 1760 | . 106 222 233 236 168 100 48 647 . . . . Cannons 2227 | . . . . 156 50 422 207 1392 . . . . Explosions 1510 | . . 61 357 . 362 730 . . . . . . Melee 968 | . . . . . 875 93 . . . . . . Ramming 8 | . . . . 8 . . . . . . . . Kinetic 3169 | . . 222 233 392 218 522 90 1492 . . . . Thermal 568 | . 39 . . . . . 165 364 . . . . Explosive 1510 | . . 61 357 . 362 730 . . . . . . Electromagnetic 250 | . 67 . . . . . . 183 . . . . Impact . | . . . . . . . . . . . . . Slashing 968 | . . . . . 875 93 . . . . . . Piercing . | . . . . . . . . . . . . . Highest Corruption 15 | . . . 12 . . . . 15 15 15 15 15 Average Corruption 11 | . . . 12 . . . . 7 15 15 15 15 Corruption Purged . | . . . . . . . . . . . . . Corruption Blocked . | . . . . . . . . . . . . . Effects 102 | . . . 75 . . . . 8 3 12 3 1 Message Errors 16 | . . . 13 . . . . . 1 2 . . Matter Fused 25 | . . . 20 . . . . 3 . 1 1 . Heat Flow Errors 13 | . . . 10 . . . . 1 . 1 1 . Energy Discharges 13 | . . . 8 . . . . 1 1 2 . 1 Parts Rejected 2 | . . . . . . . . . . 2 . . Parts Fused 5 | . . . 3 . . . . 1 . 1 . . Data Loss (minor) 12 | . . . 10 . . . . 1 . . 1 . Data Loss (major) 4 | . . . 3 . . . . . 1 . . . Misfires 5 | . . . 4 . . . . 1 . . . . Alerts 3 | . . . 2 . . . . . . 1 . . Misdirections 2 | . . . . . . . . . . 2 . . Weapon Failures 2 | . . . 2 . . . . . . . . . Overload Shots 2 | . . . . . . . 2 . . . . . Overflow Damage 105 | . . . . . 70 19 . 16 . . . . Projectiles 16 | . . . . . . . . 16 . . . . Explosions 42 | . . . . . 32 10 . . . . . . Melee 47 | . . . . . 38 9 . . . . . . Knockbacks 13 | . . . . 1 1 5 1 5 . . . . Impact . | . . . . . . . . . . . . . Kinetic 12 | . . . . 1 1 5 1 4 . . . . Secondary 1 | . . . . . . . . 1 . . . . Self-Inflicted Damage 137 | . . . 9 . 128 . . . . . . . Shots 4 | . . . 1 . 3 . . . . . . . Rammed . | . . . . . . . . . . . . . Targets Rammed 7 | . . . . 7 . . . . . . . . Kicked 7 | . . . . 7 . . . . . . . . Crushed . | . . . . . . . . . . . . . Highest Temperature 317 | . 309 81 248 33 63 47 317 161 . 73 75 . Average Temperature 60 | . 156 31 93 13 36 13 150 32 . 53 38 . Received Heat Transfer 1896 | . 36 108 . 135 414 441 432 159 . 81 63 27 Siege Activations . | . . . . . . . . . . . . . Martial Activations . | . . . . . . . . . . . . . Shielding Activations . | . . . . . . . . . . . . . Robots Disrupted . | . . . . . . . . . . . . . Combat Hostiles . | . . . . . . . . . . . . . Robots Corrupted . | . . . . . . . . . . . . . Combat Hostiles . | . . . . . . . . . . . . . Parts Fried 2 | . . . . . . . . 2 . . . . Impact Corruptions . | . . . . . . . . . . . . . Robots Melted . | . . . . . . . . . . . . . Combat Hostiles . | . . . . . . . . . . . . . Parts Melted 4 | . . . . . . . 1 3 . . . . Heat Transferred 785 | . 111 . . . . . 230 444 . . . . Parts Sabotaged 3 | . . . . . . . . . . . . 3 Parts Stolen . | . . . . . . . . . . . . . Parts Stripped . | . . . . . . . . . . . . . Power Chain Reactions . | . . . . . . . . . . . . . Alert | -11 -10 -10 -10 -8 -8 -7 -6 -5 -5 -5 -5 -5 ------- Run | Yrd Mat Min Sub Mat Sto Fac Fac Fac Was Fac Upp War Maximum Alert Level 1 | . . . . . 1 . . . . . . . Low Security (%) 96 | 100 100 100 . 100 78 100 100 100 100 100 . . Level 1 3 | . . . . . 21 . . . . . . . Level 2 . | . . . . . . . . . . . . . Level 3 . | . . . . . . . . . . . . . Level 4 . | . . . . . . . . . . . . . Level 5 . | . . . . . . . . . . . . . High Security . | . . . . . . . . . . . . . Max Security . | . . . . . . . . . . . . . Peak Influence 227 | . 41 84 . 50 227 174 82 158 9 35 . . Initial 94 | . . . . . 10 94 60 . 9 . . . Average 49 | . 9 29 . 6 109 102 28 60 2 9 . . Influence Increases 1952 | . 60 194 70 105 532 300 111 410 . 80 . 90 Destroy 0b10 Robot/C 1180 | . 40 160 60 80 360 160 60 260 . . . . Destroy 0b10 Robot/NC 55 | . . . . . 5 20 10 20 . . . . Destroy Leader 294 | . 10 30 10 20 90 30 34 70 . . . . Successful Hack 38 | . 9 . . 4 . . 4 16 . 5 . . Disable Machine 45 | . . . . . 30 15 . . . . . . Destroy Structure 115 | . 1 4 . 1 47 15 3 44 . . . . Lose Combat Pursuer 225 | . . . . . . 60 . . . 75 . 90 Influence Decreases 1898 | . 60 188 76 79 350 384 235 384 26 45 35 36 Entered New Map 229 | . . . 4 . 16 114 64 . 17 . 14 . Time Decay 1278 | . 60 188 52 68 264 190 161 214 9 45 11 16 Lost Part 391 | . . . 20 11 70 80 10 170 . . 10 20 Squads Dispatched 16 | . 1 . . 1 2 2 6 4 . . . . Investigation 1 | . 1 . . . . . . . . . . . Extermination 2 | . . . . . . . 1 1 . . . . Reinforcement 9 | . . . . 1 2 2 2 2 . . . . Assault . | . . . . . . . . . . . . . Garrison 4 | . . . . . . . 3 1 . . . . Intercept . | . . . . . . . . . . . . . Searches Triggered . | . . . . . . . . . . . . . Construction Impeded 2 | . . . . . . 1 . 1 . . . . Haulers Reinforced . | . . . . . . . . . . . . . Active Scanning Responses . | . . . . . . . . . . . . . Cargo Convoy Interrupts 1 | . . . . . . . . 1 . . . . Stealth | -11 -10 -10 -10 -8 -8 -7 -6 -5 -5 -5 -5 -5 --------- Run | Yrd Mat Min Sub Mat Sto Fac Fac Fac Was Fac Upp War Distress Signals 2 | . . . . 1 1 . . . . . . . Communications Jammed . | . . . . . . . . . . . . . Distress Signals . | . . . . . . . . . . . . . Times Spotted 133 | . 2 7 6 6 21 15 14 31 6 5 4 16 Peak Tracking Total 13 | . 2 3 3 3 6 5 6 12 6 4 4 13 Tactical Retreats 7 | . . . . . . 1 . . 1 3 . 2 Traps | -11 -10 -10 -10 -8 -8 -7 -6 -5 -5 -5 -5 -5 ------- Run | Yrd Mat Min Sub Mat Sto Fac Fac Fac Was Fac Upp War Traps Triggered 8 | . 1 . . . 1 1 3 1 . 1 . . Indirectly . | . . . . . . . . . . . . . Trap Hack Attempts . | . . . . . . . . . . . . . Triggered . | . . . . . . . . . . . . . Disarmed . | . . . . . . . . . . . . . Reprogrammed . | . . . . . . . . . . . . . Reused . | . . . . . . . . . . . . . Traps Extracted . | . . . . . . . . . . . . . Installed . | . . . . . . . . . . . . . Triggered . | . . . . . . . . . . . . . Machines | -11 -10 -10 -10 -8 -8 -7 -6 -5 -5 -5 -5 -5 ---------- Run | Yrd Mat Min Sub Mat Sto Fac Fac Fac Was Fac Upp War Machines Disabled 7 | . . . 4 . 2 1 . . . . . . Max in Single Turn 4 | . . . 4 . 1 1 . . . . . . Machines Repaired . | . . . . . . . . . . . . . Machines Dismantled . | . . . . . . . . . . . . . Machines Sabotaged . | . . . . . . . . . . . . . Overloaded Fab Kills . | . . . . . . . . . . . . . Hacking | -11 -10 -10 -10 -8 -8 -7 -6 -5 -5 -5 -5 -5 --------- Run | Yrd Mat Min Sub Mat Sto Fac Fac Fac Was Fac Upp War Machines Accessed 24 | . 4 . 1 2 3 2 2 2 . 2 . 6 Terminals 14 | . 2 . . 2 3 2 2 1 . 2 . . Fabricators 1 | . . . . . . . . 1 . . . . Repair Stations . | . . . . . . . . . . . . . Recycling Units 2 | . 2 . . . . . . . . . . . Scanalyzers . | . . . . . . . . . . . . . Garrison Access . | . . . . . . . . . . . . . Total Hacks 54 | . 7 . 9 4 8 5 5 2 . 3 . 11 Successful 35 | . 4 . 9 2 3 2 1 1 . 2 . 11 Failed 19 | . 3 . . 2 5 3 4 1 . 1 . . Catastrophic 3 | . 1 . . . . . . 1 . 1 . . Database Lockouts . | . . . . . . . . . . . . . Manual 24 | . 5 . 2 3 2 3 5 2 . 2 . . Terminals 31 | . 5 . . 4 8 5 5 1 . 3 . . Fabricators 1 | . . . . . . . . 1 . . . . Repair Stations . | . . . . . . . . . . . . . Recycling Units 2 | . 2 . . . . . . . . . . . Scanalyzers . | . . . . . . . . . . . . . Garrison Access . | . . . . . . . . . . . . . Terminal Hacks 24 | . . . 9 . 2 1 . . . 1 . 11 Record 12 | . . . 8 . . . . . . . . 4 Robot Analysis 1 | . . . . . 1 . . . . . . . Prototype ID Bank 6 | . . . . . . . . . . . . 6 Open Door 2 | . . . . . 1 . . . . . . 1 Recall Reinforcements 1 | . . . . . . 1 . . . . . . Zone Layout 1 | . . . . . . . . . . 1 . . Proto ID Catalog 1 | . . . 1 . . . . . . . . . Fabricator Hacks . | . . . . . . . . . . . . . Repair Station Hacks . | . . . . . . . . . . . . . Recycling Unit Hacks 2 | . 2 . . . . . . . . . . . Report Inventory 2 | . 2 . . . . . . . . . . . Scanalyzer . | . . . . . . . . . . . . . Garrison Access Hacks . | . . . . . . . . . . . . . Unauthorized Hacks 9 | . 2 . . 2 1 1 1 1 . 1 . . Terminals 8 | . 2 . . 2 1 1 1 . . 1 . . Botnet 8 | . 2 . . 2 1 1 1 . . 1 . . Fabricators 1 | . . . . . . . . 1 . . . . Fabnet 1 | . . . . . . . . 1 . . . . Repair Stations . | . . . . . . . . . . . . . Recycling Units . | . . . . . . . . . . . . . Scanalyzers . | . . . . . . . . . . . . . Garrison Access . | . . . . . . . . . . . . . Data Cores Recovered . | . . . . . . . . . . . . . Used . | . . . . . . . . . . . . . Hacking Detections 13 | . 3 . . 2 1 2 2 1 . 2 . . Full Trace Events 1 | . 1 . . . . . . . . . . . Feedback Events . | . . . . . . . . . . . . . Feedback Blocked . | . . . . . . . . . . . . . Robot Schematics Acquired . | . . . . . . . . . . . . . Robots Built . | . . . . . . . . . . . . . Authchips . | . . . . . . . . . . . . . Time . | . . . . . . . . . . . . . Total Robot Build Rating . | . . . . . . . . . . . . . Part Schematics Acquired . | . . . . . . . . . . . . . Parts Built . | . . . . . . . . . . . . . Authchips . | . . . . . . . . . . . . . Time . | . . . . . . . . . . . . . Total Part Build Rating . | . . . . . . . . . . . . . Part Studies Acquired . | . . . . . . . . . . . . . Parts Repaired . | . . . . . . . . . . . . . Time . | . . . . . . . . . . . . . Parts Recycled . | . . . . . . . . . . . . . Recycled Matter . | . . . . . . . . . . . . . Retrieved Matter . | . . . . . . . . . . . . . Retrieved Components . | . . . . . . . . . . . . . Parts Scanalyzed . | . . . . . . . . . . . . . Part Schematics Acquired . | . . . . . . . . . . . . . Parts Damaged . | . . . . . . . . . . . . . Bothacking | -11 -10 -10 -10 -8 -8 -7 -6 -5 -5 -5 -5 -5 ------------ Run | Yrd Mat Min Sub Mat Sto Fac Fac Fac Was Fac Upp War Used RIF Installer . | . . . . . . . . . . . . . Robots Hacked . | . . . . . . . . . . . . . Non-combat . | . . . . . . . . . . . . . Combat . | . . . . . . . . . . . . . Robot Hacks Applied . | . . . . . . . . . . . . . Relay Couplers Released 4 | . . . . . . . . 4 . . . . Programmers 4 | . . . . . . . . 4 . . . . Fabnet Peak Effective % . | . . . . . . . . . . . . . Robots Rewired . | . . . . . . . . . . . . . Allies Hacked . | . . . . . . . . . . . . . Hacks Repelled . | . . . . . . . . . . . . . Allies | -11 -10 -10 -10 -8 -8 -7 -6 -5 -5 -5 -5 -5 -------- Run | Yrd Mat Min Sub Mat Sto Fac Fac Fac Was Fac Upp War Total Allies . | . . . . . . . . . . . . . Largest Group . | . . . . . . . . . . . . . Highest-Rated Group . | . . . . . . . . . . . . . Highest-Rated Ally . | . . . . . . . . . . . . . Total Orders . | . . . . . . . . . . . . . Ally Attacks . | . . . . . . . . . . . . . Total Damage . | . . . . . . . . . . . . . Kills . | . . . . . . . . . . . . . Allies Corrupted . | . . . . . . . . . . . . . Allies Melted 1 | . . . . . . . . . . . . 1 Intel | -11 -10 -10 -10 -8 -8 -7 -6 -5 -5 -5 -5 -5 ------- Run | Yrd Mat Min Sub Mat Sto Fac Fac Fac Was Fac Upp War Active Infowar (turns) 1071 | . . . . 142 . . 251 622 56 . . . Optics 929 | . . . . . . . 251 622 56 . . . Terrain 142 | . . . . 142 . . . . . . . . Robot Analysis Total 1 | . . . . . 1 . . . . . . . Derelict Logs Recovered 3 | . . 2 1 . . . . . . . . . Drone Launches . | . . . . . . . . . . . . . Drone Recoveries . | . . . . . . . . . . . . . Exploration | -11 -10 -10 -10 -8 -8 -7 -6 -5 -5 -5 -5 -5 ------------- Run | Yrd Mat Min Sub Mat Sto Fac Fac Fac Was Fac Upp War Turns Passed 6844 | 96 279 506 2484 458 650 380 504 622 70 178 67 550 Spaces Moved 4947 | 55 146 258 1692 305 299 293 391 394 136 319 134 525 Core 2013 | 3 . . 773 . 6 58 . 59 136 319 134 525 Treads 681 | 52 146 258 94 . 123 . . 8 . . . . Legs 1053 | . . . 262 39 168 74 183 327 . . . . Wheels 1200 | . . . 563 266 2 161 208 . . . . . Hover . | . . . . . . . . . . . . . Flight . | . . . . . . . . . . . . . Fastest Speed 50 | 50 160 160 80 95 120 50 100 50 50 50 50 50 Average Speed 108 | 155 160 160 106 120 156 95 114 115 50 50 50 104 Slowest Speed 350 | 160 160 160 200 190 350 190 200 240 50 50 50 150 Overloaded Moves . | . . . . . . . . . . . . . Propulsion Burnouts . | . . . . . . . . . . . . . Robots Hopped . | . . . . . . . . . . . . . Potential Cave-ins . | . . . . . . . . . . . . . Cave-ins Triggered 1 | . . . 1 . . . . . . . . . Exploration Rate (%) 32 | 3 29 57 43 23 45 9 17 15 79 7 20 70 Regions Visited 12 Branch Regions 5 Pre-discovered Areas 1 | . . . 1 . . . . . . . . . Known Exits Taken 2 | . . . . . . . . . . 1 1 . Unknown Exits Taken 8 | 1 1 1 1 1 1 1 1 . . . . . Scrap Searched 1 | . . 1 . . . . . . . . . . Spaces Dug 1 | . . . 1 . . . . . . . . . Terrain Destroyed 140 | . . 4 42 1 50 16 3 24 . . . . Melee . | . . . . . . . . . . . . . Projectile 31 | . . . 1 1 . 2 3 24 . . . . AOE 109 | . . 4 41 . 50 14 . . . . . . Terrain Rammed . | . . . . . . . . . . . . . Walls Destroyed . | . . . . . . . . . . . . . Machines Disabled . | . . . . . . . . . . . . . Actions | -11 -10 -10 -10 -8 -8 -7 -6 -5 -5 -5 -5 -5 --------- Run | Yrd Mat Min Sub Mat Sto Fac Fac Fac Was Fac Upp War Total 6003 | 62 177 321 2302 360 399 349 429 475 136 332 133 528 Wait 628 | . 16 26 534 17 22 . 3 7 . 3 . . Move 4936 | 54 145 257 1691 304 298 292 390 394 135 318 133 525 Hop . | . . . . . . . . . . . . . Pick Up 38 | 2 4 5 8 4 2 6 3 4 . . . . Fast Attach 70 | 6 3 . 3 1 14 10 11 11 1 9 . 1 Attach 22 | . . . 4 4 2 4 3 4 . 1 . . Detach 6 | . 2 . . 1 1 . . . . 1 . 1 Swap 16 | . . 4 3 . 1 . 2 6 . . . . Drop 39 | . . 8 5 . 6 4 7 8 . . . 1 Fire 197 | . 7 21 54 22 16 26 10 41 . . . . Melee 44 | . . . . . 37 7 . . . . . . Ram . | . . . . . . . . . . . . . Kick 7 | . . . . 7 . . . . . . . . Crush . | . . . . . . . . . . . . . Escape Stasis . | . . . . . . . . . . . . . Rewire . | . . . . . . . . . . . . . Trap . | . . . . . . . . . . . . . Miscellaneous . | . . . . . . . . . . . . . Route ------- -11/Scrapyard -10/Materials -10/Mines (discovered 2 exits: [*Mat] / *Sub) -10/Subcaves -8/Materials (discovered 2 exits: *Sto x2) -8/Storage -7/Factory -6/Factory (discovered 2 exits: *Fac x2) -5/Factory -5/Waste -5/Factory -5/Upper Caves -5/Warlord History --------- Turn | Location | Event 37 | -11/Scrapyard | Discovered new exit (range 15) 97 | -11/Scrapyard | Entered Materials 305 | -10/Materials | Build established: Mutant 357 | -10/Materials | Discovered new exit (range 12) 376 | -10/Materials | Entered Mines 540 | -10/Mines | Learned Materials stockpile data 603 | -10/Mines | Discovered new exit (range 8) 710 | -10/Mines | Found a Scrap Suit stashed away for nefarious purposes 714 | -10/Mines | Found Scrap Suit 839 | -10/Mines | Learned Materials security intel 874 | -10/Mines | Discovered new exit (range 5) 882 | -10/Mines | Entered Subcaves 1032 | -10/Subcaves | Learned Materials security intel 1185 | -10/Subcaves | Visited 4L-MR0's lab 1257 | -10/Subcaves | Found Tower Shield 1268 | -10/Subcaves | Crushed by falling debris 1268 | -10/Subcaves | Core integrity fell below 50% 1268 | -10/Subcaves | System corruption reached 10% 1299 | -10/Subcaves | Lost 3 parts (2n1w) 1339 | -10/Subcaves | Learned location of Zion (-7) 1339 | -10/Subcaves | Met a Zionite searching for "candidates" 1557 | -10/Subcaves | A swath of the cavern ceiling suddenly collapsed 3054 | -10/Subcaves | Core integrity fell below 20% 3289 | -10/Subcaves | Shifting Twisted Machinery released Mak. Light Armor Plating 3293 | -10/Subcaves | Shifting Twisted Machinery released Sub. Monowheel 3354 | -10/Subcaves | Discovered new exit (range 14) 3366 | -10/Subcaves | Entered Materials 3366 | -8/Materials | Evolved 4 slots: Propulsion x1, Utility x2, Weapon x1 3553 | -8/Materials | Discovered new exit (range 5) 3747 | -8/Materials | Discovered new exit (range 14) 3824 | -8/Materials | Entered Storage 3877 | -8/Storage | Lost 3 parts (1p1u1w) 4245 | -8/Storage | Lost 3 parts (2n1w) 4433 | -8/Storage | Core integrity fell below 50% 4457 | -8/Storage | Discovered new exit (range 14) 4474 | -8/Storage | Entered Factory 4474 | -7/Factory | Evolved 2 slots: Utility x1, Weapon x1 4532 | -7/Factory | Build established: Scavenger-Mutant 4638 | -7/Factory | Lost 8 parts (1p3n1u3w) 4845 | -7/Factory | Discovered new exit (range 9) 4854 | -7/Factory | Entered another Factory area 4854 | -6/Factory | Evolved 2 slots: Utility x2 4895 | -6/Factory | Build established: Hacker-Mutant 4969 | -6/Factory | Discovered new exit (range 8) 5264 | -6/Factory | Spotted B-75 Beast 5329 | -6/Factory | Discovered new exit (range 21) 5358 | -6/Factory | Entered another Factory area 5358 | -5/Factory | Evolved 2 slots: Utility x2 5703 | -5/Factory | Spotted B-75 Beast 5862 | -5/Factory | System corruption reached 10% 5900 | -5/Factory | Garrison activated, responded to threat 5931 | -5/Factory | Cargo convoy interrupted 5980 | -5/Factory | Lost 15 parts (1p4n3u7w) 5980 | -5/Factory | Sucked down chute 5980 | -5/Factory | Entered Waste 5992 | -5/Waste | Spotted C-40 Crusher 6003 | -5/Waste | Spotted C-40 Crusher 6004 | -5/Waste | Spotted C-40 Crusher 6028 | -5/Waste | Spotted C-40 Crusher 6028 | -5/Waste | Spotted C-40 Crusher 6032 | -5/Waste | Crushed by Compactor (1 part destroyed, 1 dropped) 6033 | -5/Waste | Spotted C-40 Crusher 6034 | -5/Waste | Crushed by Compactor (1 part destroyed, 2 dropped) 6035 | -5/Waste | Core integrity fell below 50% 6036 | -5/Waste | Crushed by Compactor (1 part destroyed, 1 dropped) 6045 | -5/Waste | Discovered new exit (range 11) 6050 | -5/Waste | Entered Factory 6067 | -5/Factory | Lost 3 parts (1n2u) 6191 | -5/Factory | Build established: Mutant 6210 | -5/Factory | Discovered new exit (range 13) 6227 | -5/Factory | Identified exit to Upper Caves 6228 | -5/Factory | Entered Upper Caves 6269 | -5/Upper Caves | Core integrity fell below 20% 6291 | -5/Upper Caves | A Derelict revealed a hidden shortcut to "reach the base" 6295 | -5/Upper Caves | Identified exit to Warlord 6295 | -5/Upper Caves | Entered Warlord 6323 | -5/Warlord | System corruption cleaned by Quarantine Array 6405 | -5/Warlord | Found Prototype Device 6405 | -5/Warlord | Identified Minesniffer Drone Bay 6411 | -5/Warlord | Met Warlord 6436 | -5/Warlord | Warlord's base attacked by MAIN.C 6785 | -5/Warlord | Opened side exit 6786 | -5/Warlord | Warlord forces counterattacked 6836 | -5/Warlord | Spotted Striker 6836 | -5/Warlord | Spotted Executioner 6839 | -5/Warlord | Spotted Striker 6845 | -5/Warlord | Destroyed by Striker with Compact Linear Accelerator Last Messages --------------- gate area for counterattack. A derelict rushes over: "Hello visitor! You need to get out of here as soon as possible in case things don't go according to plan. The exit is outside the main gate in the north caves. Use the counterattack as cover, go!" ANNOUNCEMENT: MAIN.C reinforcements approaching through caves, arriving soon. ANNOUNCEMENT: Detected 2 Saboteur squads, 1 Grunt squad, 1 Hunter squad, with prototype support. Penetrated by Slug. Backup Power III destroyed. Knocked back. Arm. Medium Treads blown off. Adv. Target Analyzer blown off. Backup Laser III blown off. Backup Laser III disintegrated. E-15 Imp destroyed. Knocked back. Map ----- +----------------------------------------------------+ | ??????????????????????????????? | | ??????????????????????????????? | | ??????????????????????????????? | | ??????????????????????????????? | | ??????????????????????????????? | | ??????????????????????????????? | | ??????????????????????????????? | | ??????????????????????????????? | | ??????????????????????????????? | | ??????????????????????????????? | | ?????????????????????????? ??? | | ?????????????????????????? ??? | | ?????????????????????????? ??? | | ?????????????????????????? ??? | | ?????????????????????????? ##? | | ##????????????????????###? ?? | | "############???????? #;# #?? | | """"""""""""#???????? i/ #??? | | """"""""""""#?####??# g ??? | | ### ##" ??? | | + #?Egg#??? | | + ##?#h #??? | | #### ##??#KK#??? | | """"""""""""#??## #??## g##?? | | """"""""""""#???# #?##; #?? | | "############???# #### #@ #?? | | ##?????????????## #?# % #?? | | ??????????????## ### e #?? | | ???????????#??# ### e ;#?? | | ???????????? ## ##?# ^=% ##?? | | ????????????#" #??## =!##??? | | ???????????##" #???##% #???? | | ???????????# " ##????# % #???? | | ???????????? " #?????## ##??? | | ????????????## ##????## #??? | | ???????????## ##??## #??? | | ???????????# ##?# #??? | | ???????##### ## ### ^#??? | | ??????## # #### ## #??? | | ??????# #?## ## #??? | | ??????# ##?# ## ##??? | | ??????# ## #?## #???? | | ??????###### #??### ##???? | | ??????????# ##????######????? | | ??????????# ##???????????????? | | ??????????# #????????????????? | | ??????????# #????????????????? | | ??????????# #????????????????? | | ??????????# #????????????????? | | ??????????# #????????????????? | +----------------------------------------------------+ Best States ------------- Heat Dissipation 59 Energy Generation 19 Energy Capacity 315 Matter Stores 300 Matter Capacity 300 Sight Range 22 Terrain Scan Range 16 Terrain Scan Density 10 Armor Coverage 225 Evasion (%) 55 Targeting Accuracy 8 Target Analysis 8 Core Analysis 9 Recoil Reduction 6 Salvage Targeting 2 Offensive Hacking 20 Defensive Hacking 10 Authchip Count 1 Item Schematics ----------------- None Robot Schematics ------------------ None Fabricated ------------ Nothing Repaired ---------- Nothing Studied --------- None Alien Tech Used ----------------- None Achievements -------------- Art Critic Botjacking Bumper Bots Jackpot Mistaken Identity Physics Hates This One Trick Challenges ------------ None Game ------ Seed ArchitectArcsightWell Manual? 0 Play Time 01:09:56 Cumulative 87.7 hours Start 2025.10.22 @ 14:42:43 End 2025.10.22 @ 15:53:22 Sessions 1 Manual Loads 0 Difficulty Rogue Special Mode None Game No. 97 Rogue 97 Adventurer 0 Explorer 0 Win Type - Total 1 Types 1/0/0/0/0/0/0/0/0/0 Lore% 67 Gallery% 53 Achievement% 29 Wizard Run 0 Options --------- Layout 1 ASCII 0 Keyboard 0 Movement Mouse Keybinds 0 Fullscreen 2 Font 24/Smallcaps Map View 50x35 Zoom Use 0% Tactical HUD 0 Map Filters NONE Filters NONE Steam 1 RUN: 66c6e146-c582-45b7-9c61-4be2f7405ca4